[Event "Titled Tuesday Blitz February 28 Early 2023"]
[White "Crevatin, Leo"]
[Black "Rian, Kapriaga"]
[WhiteFideId "1726307"]
[BlackFideId "7103263"]
[WhiteElo "2190"]
[BlackElo "2367"]
[Result "1/2-1/2"]
[Round "04"]
[TimeControl "180+2"]
[Date "2023.02.28"]
[WhiteClock "0:00:02"]
[BlackClock "0:00:01"]

1. e4 {[%clk 0:03:00]}  c6 {[%clk 0:02:59]} 2. Nf3 {[%clk 0:02:59]}  d5 {[%clk 0:02:58]} 3. Nc3 {[%clk 0:03:00]}  Bg4 {[%clk 0:02:58]} 4. h3 {[%clk 0:03:00]}  Bxf3 {[%clk 0:02:58]} 5. Qxf3 {[%clk 0:03:00]}  Nf6 {[%clk 0:02:59]} 6. Be2 {[%clk 0:03:01]}  e6 {[%clk 0:02:55]} 7. O-O {[%clk 0:03:00]}  Nbd7 {[%clk 0:02:55]} 8. d4 {[%clk 0:03:00]}  dxe4 {[%clk 0:02:52]} 9. Nxe4 {[%clk 0:03:01]}  Nxe4 {[%clk 0:02:51]} 10. Qxe4 {[%clk 0:03:02]}  Bd6 {[%clk 0:02:51]} 11. Bf3 {[%clk 0:03:00]}  O-O {[%clk 0:02:49]} 12. g3 {[%clk 0:02:57]}  Qf6 {[%clk 0:02:41]} 13. Bg2 {[%clk 0:02:53]}  Rad8 {[%clk 0:02:40]} 14. c3 {[%clk 0:02:41]}  Rfe8 {[%clk 0:02:39]} 15. Qg4 {[%clk 0:02:36]}  Qg6 {[%clk 0:02:37]} 16. Qxg6 {[%clk 0:02:34]}  hxg6 {[%clk 0:02:35]} 17. Re1 {[%clk 0:02:33]}  e5 {[%clk 0:02:31]} 18. dxe5 {[%clk 0:02:29]}  Nxe5 {[%clk 0:02:30]} 19. Bf4 {[%clk 0:02:27]}  Nc4 {[%clk 0:02:23]} 20. Rxe8+ {[%clk 0:02:19]}  Rxe8 {[%clk 0:02:22]} 21. Bxd6 {[%clk 0:02:18]}  Nxd6 {[%clk 0:02:22]} 22. Rd1 {[%clk 0:02:19]}  Nc4 {[%clk 0:02:15]} 23. b3 {[%clk 0:02:12]}  Nb6 {[%clk 0:02:14]} 24. Kf1 {[%clk 0:02:09]}  Kf8 {[%clk 0:02:10]} 25. c4 {[%clk 0:02:08]}  Ke7 {[%clk 0:02:07]} 26. c5 {[%clk 0:02:00]}  Nd7 {[%clk 0:02:06]} 27. b4 {[%clk 0:02:01]}  Ra8 {[%clk 0:01:52]} 28. Rc1 {[%clk 0:01:48]}  a5 {[%clk 0:01:49]} 29. b5 {[%clk 0:01:47]}  Rc8 {[%clk 0:01:34]} 30. bxc6 {[%clk 0:01:36]}  bxc6 {[%clk 0:01:34]} 31. Ke2 {[%clk 0:01:34]}  Kd8 {[%clk 0:01:34]} 32. Kd3 {[%clk 0:01:31]}  Kc7 {[%clk 0:01:33]} 33. Kd4 {[%clk 0:01:30]}  Rb8 {[%clk 0:01:33]} 34. Re1 {[%clk 0:01:23]}  Rb2 {[%clk 0:01:20]} 35. a3 {[%clk 0:01:15]}  Rxf2 {[%clk 0:01:18]} 36. Be4 {[%clk 0:01:14]}  Ra2 {[%clk 0:01:11]} 37. Re3 {[%clk 0:01:11]}  Ra1 {[%clk 0:01:03]} 38. g4 {[%clk 0:00:39]}  Rd1+ {[%clk 0:00:58]} 39. Bd3 {[%clk 0:00:35]}  Kd8 {[%clk 0:00:52]} 40. Rf3 {[%clk 0:00:27]}  f6 {[%clk 0:00:46]} 41. Ke3 {[%clk 0:00:19]}  Ne5 {[%clk 0:00:40]} 42. Be2 {[%clk 0:00:19]}  Ra1 {[%clk 0:00:37]} 43. Rf1 {[%clk 0:00:16]}  Rxa3+ {[%clk 0:00:36]} 44. Ke4 {[%clk 0:00:16]}  Rxh3 {[%clk 0:00:33]} 45. Ra1 {[%clk 0:00:16]}  Rc3 {[%clk 0:00:30]} 46. Rxa5 {[%clk 0:00:15]}  Rc2 {[%clk 0:00:26]} 47. Ke3 {[%clk 0:00:04]}  Rc3+ {[%clk 0:00:21]} 48. Kd2 {[%clk 0:00:02]}  Rg3 {[%clk 0:00:17]} 49. Ra8+ {[%clk 0:00:02]}  Ke7 {[%clk 0:00:15]} 50. Ra7+ {[%clk 0:00:03]}  Ke6 {[%clk 0:00:15]} 51. Rxg7 {[%clk 0:00:03]}  g5 {[%clk 0:00:14]} 52. Rc7 {[%clk 0:00:01]}  Kd5 {[%clk 0:00:14]} 53. Rc8 {[%clk 0:00:01]}  Kxc5 {[%clk 0:00:13]} 54. Rf8 {[%clk 0:00:02]}  Nd7 {[%clk 0:00:13]} 55. Rf7 {[%clk 0:00:02]}  Kd6 {[%clk 0:00:12]} 56. Bd3 {[%clk 0:00:03]}  Rxg4 {[%clk 0:00:10]} 57. Rxd7+ {[%clk 0:00:02]}  Kxd7 {[%clk 0:00:09]} 58. Bf5+ {[%clk 0:00:03]}  Kd6 {[%clk 0:00:10]} 59. Bxg4 {[%clk 0:00:04]}  Ke5 {[%clk 0:00:09]} 60. Ke3 {[%clk 0:00:02]}  f5 {[%clk 0:00:09]} 61. Bh5 {[%clk 0:00:02]}  g4 {[%clk 0:00:08]} 62. Be8 {[%clk 0:00:02]}  c5 {[%clk 0:00:08]} 63. Bb5 {[%clk 0:00:01]}  f4+ {[%clk 0:00:08]} 64. Kd3 {[%clk 0:00:01]}  Kd5 {[%clk 0:00:04]} 65. Bc4+ {[%clk 0:00:01]}  Ke5 {[%clk 0:00:04]} 66. Bb5 {[%clk 0:00:01]}  g3 {[%clk 0:00:01]} 67. Bc6 {[%clk 0:00:02]} 1/2-1/2


[Site "https://www.chess.com"]

[Event "Titled Tuesday Blitz February 28 Early 2023"]
[White "Odegov, Artem"]
[Black "Gatterer, Florian"]
[WhiteFideId "34183644"]
[BlackFideId "811688"]
[WhiteElo "2300"]
[BlackElo "2221"]
[Result "1-0"]
[Round "04"]
[TimeControl "180+2"]
[Date "2023.02.28"]
[WhiteClock "0:00:27"]
[BlackClock "0:00:16"]

1. d4 {[%clk 0:03:00]}  d5 {[%clk 0:02:53]} 2. c4 {[%clk 0:03:00]}  c6 {[%clk 0:02:54]} 3. Nc3 {[%clk 0:03:00]}  Nf6 {[%clk 0:02:53]} 4. Nf3 {[%clk 0:03:00]}  dxc4 {[%clk 0:02:53]} 5. a4 {[%clk 0:03:00]}  Bf5 {[%clk 0:02:53]} 6. Ne5 {[%clk 0:03:00]}  Nbd7 {[%clk 0:02:52]} 7. Nxc4 {[%clk 0:03:00]}  Qc7 {[%clk 0:02:53]} 8. g3 {[%clk 0:03:00]}  e5 {[%clk 0:02:53]} 9. dxe5 {[%clk 0:03:01]}  Nxe5 {[%clk 0:02:53]} 10. Bf4 {[%clk 0:03:02]}  Nfd7 {[%clk 0:02:53]} 11. Bg2 {[%clk 0:03:02]}  g5 {[%clk 0:02:51]} 12. Ne3 {[%clk 0:03:02]}  gxf4 {[%clk 0:02:51]} 13. Nxf5 {[%clk 0:03:02]}  O-O-O {[%clk 0:02:46]} 14. Qc2 {[%clk 0:03:00]}  Kb8 {[%clk 0:02:46]} 15. Rd1 {[%clk 0:02:59]}  fxg3 {[%clk 0:02:38]} 16. hxg3 {[%clk 0:02:58]}  Nf6 {[%clk 0:02:30]} 17. Rxd8+ {[%clk 0:02:55]}  Qxd8 {[%clk 0:02:31]} 18. O-O {[%clk 0:02:43]}  a5 {[%clk 0:02:12]} 19. Ne4 {[%clk 0:02:37]}  Nxe4 {[%clk 0:01:50]} 20. Qxe4 {[%clk 0:02:38]}  f6 {[%clk 0:01:50]} 21. Qc2 {[%clk 0:02:09]}  h5 {[%clk 0:01:35]} 22. Rd1 {[%clk 0:02:07]}  Qb6 {[%clk 0:01:33]} 23. e3 {[%clk 0:01:59]}  Bc5 {[%clk 0:01:26]} 24. Ng7 {[%clk 0:01:47]}  h4 {[%clk 0:01:15]} 25. gxh4 {[%clk 0:01:46]}  Rxh4 {[%clk 0:01:00]} 26. Ne6 {[%clk 0:01:34]}  Bb4 {[%clk 0:00:45]} 27. Qf5 {[%clk 0:01:29]}  Be7 {[%clk 0:00:28]} 28. Rd2 {[%clk 0:01:03]}  Ka7 {[%clk 0:00:27]} 29. Nf4 {[%clk 0:00:53]}  Nc4 {[%clk 0:00:20]} 30. Rd7 {[%clk 0:00:53]}  Bc5 {[%clk 0:00:19]} 31. Nd3 {[%clk 0:00:41]}  Bxe3 {[%clk 0:00:16]} 32. fxe3 {[%clk 0:00:41]}  Nxe3 {[%clk 0:00:15]} 33. Qc5 {[%clk 0:00:22]}  Rg4 {[%clk 0:00:12]} 34. Qxb6+ {[%clk 0:00:21]}  Kxb6 {[%clk 0:00:12]} 35. Ne1 {[%clk 0:00:22]}  Nxg2 {[%clk 0:00:08]} 36. Nxg2 {[%clk 0:00:23]}  Rc4 {[%clk 0:00:07]} 37. Rd2 {[%clk 0:00:21]}  Rxa4 {[%clk 0:00:06]} 38. Kf2 {[%clk 0:00:21]}  Rc4 {[%clk 0:00:06]} 39. Ne3 {[%clk 0:00:21]}  Re4 {[%clk 0:00:05]} 40. Kf3 {[%clk 0:00:21]}  Re6 {[%clk 0:00:04]} 41. Kf4 {[%clk 0:00:22]}  Kb5 {[%clk 0:00:04]} 42. Nc2 {[%clk 0:00:22]}  Re8 {[%clk 0:00:02]} 43. Nd4+ {[%clk 0:00:22]}  Kb4 {[%clk 0:00:03]} 44. Nf5 {[%clk 0:00:23]}  Kb3 {[%clk 0:00:02]} 45. Nd6 {[%clk 0:00:16]}  Rb8 {[%clk 0:00:02]} 46. Ne4 {[%clk 0:00:15]}  a4 {[%clk 0:00:02]} 47. Nc5+ {[%clk 0:00:16]}  Ka2 {[%clk 0:00:03]} 48. Nxa4 {[%clk 0:00:15]}  Kb3 {[%clk 0:00:02]} 49. Nc5+ {[%clk 0:00:15]}  Kc4 {[%clk 0:00:03]} 50. Nd7 {[%clk 0:00:15]}  Ra8 {[%clk 0:00:02]} 51. Nb6+ {[%clk 0:00:16]}  Kb3 {[%clk 0:00:03]} 52. Nxa8 {[%clk 0:00:16]}  Ka2 {[%clk 0:00:03]} 53. Nb6 {[%clk 0:00:16]}  Kb1 {[%clk 0:00:04]} 54. Nd7 {[%clk 0:00:17]}  Kc1 {[%clk 0:00:05]} 55. Rh2 {[%clk 0:00:17]}  Kb1 {[%clk 0:00:06]} 56. Nxf6 {[%clk 0:00:17]}  Kc1 {[%clk 0:00:07]} 57. Ne8 {[%clk 0:00:18]}  Kb1 {[%clk 0:00:08]} 58. Nd6 {[%clk 0:00:19]}  Kc1 {[%clk 0:00:09]} 59. Nxb7 {[%clk 0:00:20]}  Kb1 {[%clk 0:00:10]} 60. Na5 {[%clk 0:00:20]}  Kc1 {[%clk 0:00:11]} 61. Nxc6 {[%clk 0:00:21]}  Kb1 {[%clk 0:00:12]} 62. b4 {[%clk 0:00:22]}  Kc1 {[%clk 0:00:12]} 63. b5 {[%clk 0:00:23]}  Kb1 {[%clk 0:00:13]} 64. b6 {[%clk 0:00:24]}  Kc1 {[%clk 0:00:14]} 65. b7 {[%clk 0:00:25]}  Kb1 {[%clk 0:00:15]} 66. b8=Q+ {[%clk 0:00:26]}  Kc1 {[%clk 0:00:15]} 67. Qb2+ {[%clk 0:00:26]}  Kd1 {[%clk 0:00:16]} 68. Qd2# {[%clk 0:00:27]} 1-0


[Site "https://www.chess.com"]

[Event "Titled Tuesday Blitz February 28 Early 2023"]
[White "Todorovic, Bojan"]
[Black "Williams, Simon K"]
[WhiteFideId "917087"]
[BlackFideId "404454"]
[WhiteElo "2266"]
[BlackElo "2468"]
[Result "0-1"]
[Round "04"]
[TimeControl "180+2"]
[Date "2023.02.28"]
[WhiteClock "0:00:46"]
[BlackClock "0:00:54"]

1. Nf3 {[%clk 0:02:58]}  f5 {[%clk 0:02:57]} 2. g3 {[%clk 0:02:57]}  Nf6 {[%clk 0:02:56]} 3. Bg2 {[%clk 0:02:56]}  d6 {[%clk 0:02:56]} 4. d4 {[%clk 0:02:50]}  e6 {[%clk 0:02:56]} 5. O-O {[%clk 0:02:49]}  Be7 {[%clk 0:02:56]} 6. c3 {[%clk 0:02:34]}  O-O {[%clk 0:02:55]} 7. Nbd2 {[%clk 0:02:34]}  Nc6 {[%clk 0:02:54]} 8. Qc2 {[%clk 0:02:33]}  e5 {[%clk 0:02:53]} 9. dxe5 {[%clk 0:02:31]}  dxe5 {[%clk 0:02:52]} 10. e4 {[%clk 0:02:31]}  f4 {[%clk 0:02:20]} 11. Nc4 {[%clk 0:02:30]}  fxg3 {[%clk 0:01:53]} 12. hxg3 {[%clk 0:02:26]}  Qe8 {[%clk 0:01:43]} 13. Bg5 {[%clk 0:02:14]}  Qh5 {[%clk 0:01:38]} 14. Bh4 {[%clk 0:01:45]}  Bg4 {[%clk 0:01:24]} 15. Ng5 {[%clk 0:01:42]}  h6 {[%clk 0:01:17]} 16. Qb3 {[%clk 0:00:54]}  hxg5 {[%clk 0:01:03]} 17. Nb6+ {[%clk 0:00:48]}  Kh8 {[%clk 0:00:59]} 18. Nxa8 {[%clk 0:00:48]}  gxh4 {[%clk 0:00:58]} 19. Qxb7 {[%clk 0:00:46]}  h3 {[%clk 0:00:54]} 0-1


[Site "https://www.chess.com"]

[Event "Titled Tuesday Blitz February 28 Early 2023"]
[White "Souleidis, Georgios"]
[Black "Ansh M Shah"]
[WhiteFideId "4206827"]
[BlackFideId "25033379"]
[WhiteElo "2401"]
[BlackElo "2084"]
[Result "1-0"]
[Round "04"]
[TimeControl "180+2"]
[Date "2023.02.28"]
[WhiteClock "0:00:15"]
[BlackClock "0:00:02"]

1. d4 {[%clk 0:03:00]}  Nf6 {[%clk 0:02:59]} 2. Bf4 {[%clk 0:03:00]}  e6 {[%clk 0:03:00]} 3. e3 {[%clk 0:02:55]}  d5 {[%clk 0:03:00]} 4. Nd2 {[%clk 0:02:53]}  Be7 {[%clk 0:02:58]} 5. Bd3 {[%clk 0:02:52]}  O-O {[%clk 0:02:59]} 6. c3 {[%clk 0:02:52]}  c5 {[%clk 0:02:58]} 7. Ngf3 {[%clk 0:02:52]}  Nbd7 {[%clk 0:02:59]} 8. Ne5 {[%clk 0:02:52]}  Nxe5 {[%clk 0:02:59]} 9. dxe5 {[%clk 0:02:50]}  Nd7 {[%clk 0:02:59]} 10. Qh5 {[%clk 0:02:48]}  g6 {[%clk 0:02:48]} 11. Qe2 {[%clk 0:02:30]}  f5 {[%clk 0:02:37]} 12. exf6 {[%clk 0:02:16]}  Bxf6 {[%clk 0:02:36]} 13. Bg3 {[%clk 0:02:04]}  e5 {[%clk 0:02:07]} 14. e4 {[%clk 0:02:04]}  d4 {[%clk 0:01:58]} 15. O-O {[%clk 0:01:56]}  Qe7 {[%clk 0:01:48]} 16. a4 {[%clk 0:01:48]}  b6 {[%clk 0:01:33]} 17. Bc4+ {[%clk 0:01:32]}  Kg7 {[%clk 0:01:32]} 18. Bd5 {[%clk 0:01:32]}  Rb8 {[%clk 0:01:29]} 19. cxd4 {[%clk 0:01:24]}  cxd4 {[%clk 0:01:27]} 20. Rfc1 {[%clk 0:01:23]}  a5 {[%clk 0:01:04]} 21. Rc7 {[%clk 0:01:18]}  Qd6 {[%clk 0:01:04]} 22. Rac1 {[%clk 0:01:17]}  Bd8 {[%clk 0:01:04]} 23. Rxc8 {[%clk 0:01:08]}  Rxc8 {[%clk 0:00:54]} 24. Rxc8 {[%clk 0:01:09]}  Nc5 {[%clk 0:00:52]} 25. Nc4 {[%clk 0:01:05]}  Qd7 {[%clk 0:00:45]} 26. Bxe5+ {[%clk 0:01:02]}  Kh6 {[%clk 0:00:27]} 27. Rc6 {[%clk 0:00:49]}  d3 {[%clk 0:00:06]} 28. Qd2+ {[%clk 0:00:49]}  Bg5 {[%clk 0:00:06]} 29. f4 {[%clk 0:00:49]}  Bd8 {[%clk 0:00:02]} 30. Bd4 {[%clk 0:00:36]}  Qg4 {[%clk 0:00:02]} 31. Bxc5 {[%clk 0:00:29]}  bxc5 {[%clk 0:00:03]} 32. Qxd3 {[%clk 0:00:28]}  Rxf4 {[%clk 0:00:03]} 33. Qh3+ {[%clk 0:00:17]}  Qxh3 {[%clk 0:00:03]} 34. gxh3 {[%clk 0:00:17]}  Bf6 {[%clk 0:00:02]} 35. e5 {[%clk 0:00:16]}  Bg5 {[%clk 0:00:02]} 36. e6 {[%clk 0:00:15]} 1-0


[Site "https://www.chess.com"]

[Event "Titled Tuesday Blitz February 28 Early 2023"]
[White "Thorhallsson, Simon"]
[Black "Petrova, Irina"]
[WhiteFideId "2310090"]
[BlackFideId "14124122"]
[WhiteElo "2108"]
[BlackElo "2084"]
[Result "0-1"]
[Round "04"]
[TimeControl "180+2"]
[Date "2023.02.28"]
[WhiteClock "0:00:02"]
[BlackClock "0:00:12"]

1. e4 {[%clk 0:03:00]}  d6 {[%clk 0:03:00]} 2. d4 {[%clk 0:03:00]}  g6 {[%clk 0:03:00]} 3. Nc3 {[%clk 0:02:58]}  Nf6 {[%clk 0:03:00]} 4. Nf3 {[%clk 0:02:57]}  Bg7 {[%clk 0:02:59]} 5. Be2 {[%clk 0:02:58]}  O-O {[%clk 0:03:00]} 6. O-O {[%clk 0:02:58]}  Bg4 {[%clk 0:02:59]} 7. Be3 {[%clk 0:02:57]}  Nc6 {[%clk 0:02:59]} 8. d5 {[%clk 0:02:55]}  Bxf3 {[%clk 0:02:59]} 9. Bxf3 {[%clk 0:02:55]}  Ne5 {[%clk 0:02:58]} 10. Be2 {[%clk 0:02:56]}  c6 {[%clk 0:02:59]} 11. f4 {[%clk 0:02:53]}  Ned7 {[%clk 0:02:58]} 12. dxc6 {[%clk 0:02:52]}  bxc6 {[%clk 0:02:59]} 13. Bc4 {[%clk 0:02:39]}  Qa5 {[%clk 0:02:57]} 14. Bb3 {[%clk 0:02:37]}  Nc5 {[%clk 0:02:53]} 15. Qf3 {[%clk 0:02:30]}  Nfd7 {[%clk 0:02:25]} 16. Bd2 {[%clk 0:02:11]}  Qb6 {[%clk 0:02:24]} 17. Kh1 {[%clk 0:02:11]}  Nxb3 {[%clk 0:02:21]} 18. axb3 {[%clk 0:02:10]}  Nc5 {[%clk 0:02:19]} 19. Be3 {[%clk 0:02:04]}  Qb4 {[%clk 0:02:13]} 20. e5 {[%clk 0:01:32]}  d5 {[%clk 0:01:53]} 21. Rfd1 {[%clk 0:01:21]}  Ne6 {[%clk 0:01:43]} 22. Ra4 {[%clk 0:01:10]}  Qb7 {[%clk 0:01:42]} 23. Bf2 {[%clk 0:01:07]}  f6 {[%clk 0:01:36]} 24. exf6 {[%clk 0:00:57]}  Bxf6 {[%clk 0:01:34]} 25. Qg4 {[%clk 0:00:38]}  Ng7 {[%clk 0:01:30]} 26. Rda1 {[%clk 0:00:36]}  a6 {[%clk 0:01:26]} 27. Bc5 {[%clk 0:00:34]}  Nf5 {[%clk 0:01:18]} 28. Qe2 {[%clk 0:00:33]}  Rf7 {[%clk 0:01:14]} 29. Rxa6 {[%clk 0:00:32]}  Rxa6 {[%clk 0:01:11]} 30. Qxa6 {[%clk 0:00:32]}  Qd7 {[%clk 0:01:10]} 31. Qb6 {[%clk 0:00:20]}  Rf8 {[%clk 0:01:05]} 32. Re1 {[%clk 0:00:13]}  Nh4 {[%clk 0:00:55]} 33. Qa6 {[%clk 0:00:12]}  Qg4 {[%clk 0:00:51]} 34. Qe2 {[%clk 0:00:12]}  Qxf4 {[%clk 0:00:48]} 35. Rf1 {[%clk 0:00:06]}  Qg5 {[%clk 0:00:42]} 36. g3 {[%clk 0:00:05]}  Nf5 {[%clk 0:00:41]} 37. Qe6+ {[%clk 0:00:04]}  Kg7 {[%clk 0:00:34]} 38. Qe1 {[%clk 0:00:05]}  Qh5 {[%clk 0:00:28]} 39. Ne2 {[%clk 0:00:05]}  Be5 {[%clk 0:00:23]} 40. Nf4 {[%clk 0:00:05]}  Bxf4 {[%clk 0:00:22]} 41. Rxf4 {[%clk 0:00:06]}  Qh3 {[%clk 0:00:17]} 42. Rf3 {[%clk 0:00:04]}  Nxg3+ {[%clk 0:00:14]} 43. Qxg3 {[%clk 0:00:03]}  Rxf3 {[%clk 0:00:14]} 44. Bd4+ {[%clk 0:00:02]}  Kf7 {[%clk 0:00:12]} 0-1


[Site "https://www.chess.com"]

[Event "Titled Tuesday Blitz February 28 Early 2023"]
[White "Llanos, Guillermo"]
[Black "Ljukin, Sergei"]
[WhiteFideId "100358"]
[BlackFideId "14102200"]
[WhiteElo "2225"]
[BlackElo "2312"]
[Result "1-0"]
[Round "04"]
[TimeControl "180+2"]
[Date "2023.02.28"]
[WhiteClock "0:00:33"]
[BlackClock "0:00:02"]

1. g3 {[%clk 0:02:51]}  e5 {[%clk 0:02:55]} 2. Nf3 {[%clk 0:02:49]}  Nc6 {[%clk 0:02:51]} 3. d4 {[%clk 0:02:49]}  e4 {[%clk 0:02:47]} 4. Ne5 {[%clk 0:02:48]}  d5 {[%clk 0:02:43]} 5. Nxc6 {[%clk 0:02:46]}  bxc6 {[%clk 0:02:43]} 6. c4 {[%clk 0:02:42]}  f5 {[%clk 0:02:38]} 7. Nc3 {[%clk 0:02:41]}  Nf6 {[%clk 0:02:37]} 8. Bg5 {[%clk 0:02:39]}  Be7 {[%clk 0:02:36]} 9. Bxf6 {[%clk 0:02:33]}  Bxf6 {[%clk 0:02:36]} 10. e3 {[%clk 0:02:32]}  O-O {[%clk 0:02:33]} 11. Qa4 {[%clk 0:02:24]}  Bd7 {[%clk 0:02:30]} 12. Qa5 {[%clk 0:02:08]}  Rb8 {[%clk 0:02:26]} 13. O-O-O {[%clk 0:02:06]}  Be6 {[%clk 0:02:01]} 14. c5 {[%clk 0:01:53]}  g5 {[%clk 0:01:59]} 15. Qxa7 {[%clk 0:01:41]}  f4 {[%clk 0:01:54]} 16. gxf4 {[%clk 0:01:40]}  gxf4 {[%clk 0:01:54]} 17. Rg1+ {[%clk 0:01:37]}  Kh8 {[%clk 0:01:53]} 18. Qa6 {[%clk 0:01:34]}  Qd7 {[%clk 0:01:50]} 19. Qe2 {[%clk 0:01:21]}  Rg8 {[%clk 0:01:48]} 20. Rxg8+ {[%clk 0:01:15]}  Rxg8 {[%clk 0:01:47]} 21. Qd2 {[%clk 0:01:08]}  f3 {[%clk 0:01:20]} 22. b4 {[%clk 0:01:04]}  Bh4 {[%clk 0:01:11]} 23. b5 {[%clk 0:01:03]}  Rb8 {[%clk 0:01:03]} 24. a4 {[%clk 0:01:00]}  Qg7 {[%clk 0:00:54]} 25. bxc6 {[%clk 0:00:53]}  Qg1 {[%clk 0:00:51]} 26. Ba6 {[%clk 0:00:46]}  Qxf2 {[%clk 0:00:50]} 27. Bb7 {[%clk 0:00:45]}  Bc8 {[%clk 0:00:26]} 28. Bxc8 {[%clk 0:00:40]}  Rxc8 {[%clk 0:00:26]} 29. Qxf2 {[%clk 0:00:40]}  Bxf2 {[%clk 0:00:25]} 30. Nxd5 {[%clk 0:00:40]}  Ra8 {[%clk 0:00:16]} 31. Rf1 {[%clk 0:00:40]}  Bh4 {[%clk 0:00:11]} 32. Nxc7 {[%clk 0:00:39]}  Rxa4 {[%clk 0:00:09]} 33. Kb2 {[%clk 0:00:36]}  Bg5 {[%clk 0:00:03]} 34. Nd5 {[%clk 0:00:36]}  Ra8 {[%clk 0:00:03]} 35. c7 {[%clk 0:00:36]}  Kg7 {[%clk 0:00:02]} 36. Kc3 {[%clk 0:00:33]} 1-0


[Site "https://www.chess.com"]

[Event "Titled Tuesday Blitz February 28 Early 2023"]
[White "Kodinets, Konstantin L."]
[Black "Lucassen, Mickey"]
[WhiteFideId "4122011"]
[BlackFideId "12919110"]
[WhiteElo "2447"]
[BlackElo "2345"]
[Result "0-1"]
[Round "04"]
[TimeControl "180+2"]
[Date "2023.02.28"]
[WhiteClock "0:01:42"]
[BlackClock "0:01:11"]

1. d4 {[%clk 0:02:53]}  Nf6 {[%clk 0:02:59]} 2. Nf3 {[%clk 0:02:54]}  g6 {[%clk 0:02:59]} 3. Bg5 {[%clk 0:02:55]}  Bg7 {[%clk 0:02:58]} 4. Nbd2 {[%clk 0:02:55]}  O-O {[%clk 0:02:58]} 5. e4 {[%clk 0:02:56]}  d6 {[%clk 0:02:59]} 6. c3 {[%clk 0:02:56]}  Qe8 {[%clk 0:02:57]} 7. a4 {[%clk 0:02:55]}  e5 {[%clk 0:02:57]} 8. dxe5 {[%clk 0:02:56]}  dxe5 {[%clk 0:02:57]} 9. Bc4 {[%clk 0:02:56]}  Nc6 {[%clk 0:02:53]} 10. a5 {[%clk 0:02:55]}  a6 {[%clk 0:02:53]} 11. O-O {[%clk 0:02:54]}  Be6 {[%clk 0:02:53]} 12. Bxe6 {[%clk 0:02:50]}  Qxe6 {[%clk 0:02:54]} 13. Bxf6 {[%clk 0:02:50]}  Bxf6 {[%clk 0:02:53]} 14. Qb3 {[%clk 0:02:51]}  Qe7 {[%clk 0:02:49]} 15. Nc4 {[%clk 0:02:48]}  Qc5 {[%clk 0:02:42]} 16. Rfd1 {[%clk 0:02:45]}  Rfd8 {[%clk 0:02:40]} 17. Qa4 {[%clk 0:02:39]}  Kg7 {[%clk 0:02:32]} 18. g3 {[%clk 0:02:38]}  Rxd1+ {[%clk 0:02:08]} 19. Rxd1 {[%clk 0:02:39]}  Rd8 {[%clk 0:02:07]} 20. Rxd8 {[%clk 0:02:38]}  Bxd8 {[%clk 0:02:03]} 21. h4 {[%clk 0:02:38]}  h6 {[%clk 0:02:02]} 22. Kg2 {[%clk 0:02:36]}  Bf6 {[%clk 0:01:59]} 23. Ne1 {[%clk 0:02:36]}  Qb5 {[%clk 0:01:54]} 24. Qa2 {[%clk 0:02:34]}  Be7 {[%clk 0:01:40]} 25. b4 {[%clk 0:02:28]}  b6 {[%clk 0:01:34]} 26. axb6 {[%clk 0:02:25]}  cxb6 {[%clk 0:01:35]} 27. Nc2 {[%clk 0:02:21]}  a5 {[%clk 0:01:32]} 28. N2a3 {[%clk 0:02:18]}  Qa4 {[%clk 0:01:28]} 29. Nxb6 {[%clk 0:02:17]}  Qd1 {[%clk 0:01:25]} 30. bxa5 {[%clk 0:02:07]}  Nxa5 {[%clk 0:01:23]} 31. Qd5 {[%clk 0:02:07]}  Qxd5 {[%clk 0:01:20]} 32. exd5 {[%clk 0:02:03]}  Bxa3 {[%clk 0:01:19]} 33. g4 {[%clk 0:01:55]}  Nb7 {[%clk 0:01:18]} 34. Nc4 {[%clk 0:01:52]}  Bd6 {[%clk 0:01:17]} 35. g5 {[%clk 0:01:49]}  hxg5 {[%clk 0:01:17]} 36. hxg5 {[%clk 0:01:49]}  f5 {[%clk 0:01:13]} 37. gxf6+ {[%clk 0:01:49]}  Kxf6 {[%clk 0:01:14]} 38. Kf3 {[%clk 0:01:49]}  Bc7 {[%clk 0:01:13]} 39. Ke4 {[%clk 0:01:44]}  Nd6+ {[%clk 0:01:12]} 40. Nxd6 {[%clk 0:01:43]}  Bxd6 {[%clk 0:01:12]} 41. c4 {[%clk 0:01:43]}  Bc5 {[%clk 0:01:12]} 42. f3 {[%clk 0:01:43]}  g5 {[%clk 0:01:11]} 43. Kd3 {[%clk 0:01:42]}  Kf5 {[%clk 0:01:11]} 0-1


[Site "https://www.chess.com"]

[Event "Titled Tuesday Blitz February 28 Early 2023"]
[White "Matveeva, Olga"]
[Black "Lehtosaari, Mauri"]
[WhiteFideId "24107018"]
[BlackFideId "501999"]
[WhiteElo "2056"]
[BlackElo "2525"]
[Result "0-1"]
[Round "04"]
[TimeControl "180+2"]
[Date "2023.02.28"]
[WhiteClock "0:00:13"]
[BlackClock "0:00:39"]

1. d4 {[%clk 0:03:00]}  d5 {[%clk 0:02:56]} 2. c4 {[%clk 0:03:01]}  c6 {[%clk 0:02:53]} 3. Nf3 {[%clk 0:03:01]}  Nf6 {[%clk 0:02:53]} 4. e3 {[%clk 0:03:01]}  Bg4 {[%clk 0:02:52]} 5. h3 {[%clk 0:02:58]}  Bh5 {[%clk 0:02:47]} 6. g4 {[%clk 0:02:58]}  Bg6 {[%clk 0:02:47]} 7. Nc3 {[%clk 0:02:54]}  e6 {[%clk 0:02:40]} 8. Nh4 {[%clk 0:02:52]}  Be4 {[%clk 0:02:26]} 9. f3 {[%clk 0:02:22]}  Nfd7 {[%clk 0:02:11]} 10. Ng2 {[%clk 0:02:14]}  Bg6 {[%clk 0:02:07]} 11. h4 {[%clk 0:02:13]}  h6 {[%clk 0:02:05]} 12. Nf4 {[%clk 0:01:55]}  Bh7 {[%clk 0:02:04]} 13. Bd2 {[%clk 0:01:25]}  Bd6 {[%clk 0:01:59]} 14. Nce2 {[%clk 0:01:24]}  Be7 {[%clk 0:01:53]} 15. Ng2 {[%clk 0:01:16]}  dxc4 {[%clk 0:01:50]} 16. Nef4 {[%clk 0:01:01]}  b5 {[%clk 0:01:47]} 17. a4 {[%clk 0:00:59]}  a6 {[%clk 0:01:39]} 18. b3 {[%clk 0:00:54]}  cxb3 {[%clk 0:01:34]} 19. Qxb3 {[%clk 0:00:53]}  Nb6 {[%clk 0:01:01]} 20. axb5 {[%clk 0:00:52]}  axb5 {[%clk 0:00:59]} 21. Rxa8 {[%clk 0:00:50]}  Nxa8 {[%clk 0:01:00]} 22. Be2 {[%clk 0:00:34]}  Nb6 {[%clk 0:00:54]} 23. Kf2 {[%clk 0:00:31]}  Nd5 {[%clk 0:00:52]} 24. Kg3 {[%clk 0:00:21]}  Nd7 {[%clk 0:00:50]} 25. Ra1 {[%clk 0:00:17]}  O-O {[%clk 0:00:47]} 26. Ra7 {[%clk 0:00:15]}  N7b6 {[%clk 0:00:42]} 27. Nd3 {[%clk 0:00:13]}  Qb8+ {[%clk 0:00:39]} 0-1


[Site "https://www.chess.com"]